[Event "Live Chess"]
[Site "Chess.com"]
[Date "2024.06.02"]
[Round "-"]
[White "ACM42"]
[Black "WelshTiger"]
[Result "0-1"]
[WhiteElo "2160"]
[BlackElo "2446"]
[TimeControl "300"]
[EndTime "18:22:58 PDT"]
[Termination "WelshTiger won on time"]

1. e4 {[%clk 0:04:56.8]} 1... c5 {[%clk 0:04:56]} 2. Nf3 {[%clk 0:04:55.9]} 2...
d6 {[%clk 0:04:53.8]} 3. d4 {[%clk 0:04:55.3]} 3... cxd4 {[%clk 0:04:52.6]} 4.
Nxd4 {[%clk 0:04:55.2]} 4... Nf6 {[%clk 0:04:52]} 5. Nc3 {[%clk 0:04:54.3]} 5...
Nc6 {[%clk 0:04:51.4]} 6. Be2 {[%clk 0:04:51.9]} 6... e5 {[%clk 0:04:48.6]} 7.
Ndb5 {[%clk 0:04:45.8]} 7... a6 {[%clk 0:04:44.5]} 8. Na3 {[%clk 0:04:44.5]}
8... b5 {[%clk 0:04:43.5]} 9. Nd5 {[%clk 0:04:40]} 9... Nxe4 {[%clk 0:04:39.5]}
10. O-O {[%clk 0:04:39.2]} 10... Be7 {[%clk 0:04:21.5]} 11. c4 {[%clk
0:04:28.3]} 11... b4 {[%clk 0:04:09.3]} 12. Nc2 {[%clk 0:04:26.6]} 12... a5
{[%clk 0:04:06.1]} 13. Bf3 {[%clk 0:04:16.3]} 13... f5 {[%clk 0:04:00]} 14. Bxe4
{[%clk 0:03:31.2]} 14... fxe4 {[%clk 0:03:59.9]} 15. Qh5+ {[%clk 0:03:30.1]}
15... g6 {[%clk 0:03:54.3]} 16. Qh6 {[%clk 0:03:29.3]} 16... Be6 {[%clk
0:03:52.9]} 17. Qg7 {[%clk 0:03:15]} 17... Rg8 {[%clk 0:03:48.8]} 18. Qxh7
{[%clk 0:03:13.8]} 18... Nd4 {[%clk 0:03:05.4]} 19. Nce3 {[%clk 0:02:47]} 19...
Ra7 {[%clk 0:02:59.4]} 20. b3 {[%clk 0:02:34.4]} 20... Rd7 {[%clk 0:02:55.1]}
21. Nxe7 {[%clk 0:02:14.4]} 21... Qxe7 {[%clk 0:02:52.5]} 22. Qxe7+ {[%clk
0:02:07.4]} 22... Kxe7 {[%clk 0:02:47.3]} 23. Bb2 {[%clk 0:02:06]} 23... Nf5
{[%clk 0:02:37.8]} 24. Rfe1 {[%clk 0:01:35.9]} 24... Rc8 {[%clk 0:02:29.6]} 25.
Rad1 {[%clk 0:01:33.7]} 25... a4 {[%clk 0:02:24.2]} 26. Nd5+ {[%clk 0:01:31.7]}
26... Bxd5 {[%clk 0:02:23.5]} 27. Rxd5 {[%clk 0:01:30.3]} 27... axb3 {[%clk
0:02:20.4]} 28. axb3 {[%clk 0:01:29]} 28... Ra7 {[%clk 0:02:01.9]} 29. Rb5
{[%clk 0:01:14.2]} 29... Ra2 {[%clk 0:01:59.3]} 30. Bc1 {[%clk 0:01:01.8]} 30...
Nd4 {[%clk 0:01:52.3]} 31. Rxb4 {[%clk 0:01:00.2]} 31... Nc2 {[%clk 0:01:49.4]}
32. Rb7+ {[%clk 0:00:58.9]} 32... Ke6 {[%clk 0:01:48.8]} 33. Rf1 {[%clk
0:00:45.7]} 33... Nd4 {[%clk 0:01:37.4]} 34. Be3 {[%clk 0:00:38.9]} 34... Rb2
{[%clk 0:01:35.9]} 35. g4 {[%clk 0:00:12.8]} 35... Rxb3 {[%clk 0:01:27.6]} 36.
Rg7 {[%clk 0:00:10.8]} 36... Nf3+ {[%clk 0:01:20.6]} 37. Kg2 {[%clk 0:00:08.9]}
37... Rh8 {[%clk 0:01:13.2]} 38. h3 {[%clk 0:00:07]} 38... Nh4+ {[%clk
0:01:11.2]} 39. Kg3 {[%clk 0:00:05.6]} 39... Rc3 {[%clk 0:01:06.1]} 40. Rc7
{[%clk 0:00:04.7]} 40... Nf3 {[%clk 0:01:00.7]} 41. Rd1 {[%clk 0:00:03.6]} 41...
Nd4 {[%clk 0:00:58.6]} 42. c5 {[%clk 0:00:01.4]} 42... Rxc5 {[%clk 0:00:56.1]}
0-1

[Event "Live Chess"]
[Site "Chess.com"]
[Date "2024.06.02"]
[Round "-"]
[White "WelshTiger"]
[Black "Cruiseylee78"]
[Result "1-0"]
[WhiteElo "2446"]
[BlackElo "1651"]
[TimeControl "300"]
[EndTime "18:24:17 PDT"]
[Termination "WelshTiger won by resignation"]

1. e4 {[%clk 0:04:56.5]} 1... d6 {[%clk 0:04:59.3]} 2. d4 {[%clk 0:04:55]} 2...
Nd7 {[%clk 0:04:59.2]} 3. Nf3 {[%clk 0:04:50.9]} 3... e5 {[%clk 0:04:58.5]} 4.
Nc3 {[%clk 0:04:50]} 4... c6 {[%clk 0:04:57.3]} 5. a4 {[%clk 0:04:41.8]} 5... h6
{[%clk 0:04:55.3]} 6. Bc4 {[%clk 0:04:38.7]} 6... Ngf6 {[%clk 0:04:53.1]} 7. h3
{[%clk 0:04:33.5]} 7... Be7 {[%clk 0:04:52]} 8. Be3 {[%clk 0:04:32.3]} 8... Nf8
{[%clk 0:04:50.6]} 9. dxe5 {[%clk 0:04:28]} 9... dxe5 {[%clk 0:04:49.6]} 10.
Qxd8+ {[%clk 0:04:26.3]} 10... Bxd8 {[%clk 0:04:48]} 11. Nxe5 {[%clk 0:04:25.9]}
11... Bc7 {[%clk 0:04:44.7]} 12. Nxf7 {[%clk 0:04:22.7]} 12... Ke7 {[%clk
0:04:43.4]} 13. Nxh8 {[%clk 0:04:21.3]} 1-0

[Event "Live Chess"]
[Site "Chess.com"]
[Date "2024.06.02"]
[Round "-"]
[White "NeilDruggan73"]
[Black "Frankie_Badacsonyi"]
[Result "0-1"]
[WhiteElo "1774"]
[BlackElo "2409"]
[TimeControl "300"]
[EndTime "18:24:18 PDT"]
[Termination "Frankie_Badacsonyi won on time"]

1. d4 {[%clk 0:04:55.7]} 1... Nc6 {[%clk 0:04:59.9]} 2. d5 {[%clk 0:04:53.6]}
2... Ne5 {[%clk 0:04:58.7]} 3. Nf3 {[%clk 0:04:51.8]} 3... Nxf3+ {[%clk
0:04:57.6]} 4. gxf3 {[%clk 0:04:48.5]} 4... e6 {[%clk 0:04:56.8]} 5. dxe6 {[%clk
0:04:45.3]} 5... dxe6 {[%clk 0:04:56.7]} 6. Qxd8+ {[%clk 0:04:42.7]} 6... Kxd8
{[%clk 0:04:56.6]} 7. e4 {[%clk 0:04:32.4]} 7... Bd7 {[%clk 0:04:54.2]} 8. Be3
{[%clk 0:04:30.3]} 8... Bb4+ {[%clk 0:04:39.7]} 9. Nd2 {[%clk 0:04:27.4]} 9...
Nf6 {[%clk 0:04:34.8]} 10. O-O-O {[%clk 0:04:24.3]} 10... Bxd2+ {[%clk
0:04:03.3]} 11. Rxd2 {[%clk 0:04:21.6]} 11... b6 {[%clk 0:04:00.3]} 12. Bb5
{[%clk 0:04:12.2]} 12... Ke7 {[%clk 0:03:59.1]} 13. Bxd7 {[%clk 0:03:59.5]}
13... Nxd7 {[%clk 0:03:59]} 14. Rhd1 {[%clk 0:03:55.3]} 14... Rad8 {[%clk
0:03:58.1]} 15. f4 {[%clk 0:03:50.5]} 15... Nf6 {[%clk 0:03:45]} 16. Rxd8 {[%clk
0:03:38.9]} 16... Rxd8 {[%clk 0:03:44.9]} 17. Rxd8 {[%clk 0:03:37.1]} 17... Kxd8
{[%clk 0:03:44.8]} 18. f3 {[%clk 0:03:35.5]} 18... Kd7 {[%clk 0:03:43.5]} 19. c4
{[%clk 0:03:31.9]} 19... Ne8 {[%clk 0:03:38.5]} 20. e5 {[%clk 0:03:26.6]} 20...
g6 {[%clk 0:03:35.8]} 21. b4 {[%clk 0:03:24.1]} 21... Ng7 {[%clk 0:03:34.6]} 22.
c5 {[%clk 0:03:19.6]} 22... Kc6 {[%clk 0:03:33.4]} 23. cxb6 {[%clk 0:03:16.4]}
23... cxb6 {[%clk 0:03:32.1]} 24. a4 {[%clk 0:03:15.7]} 24... a6 {[%clk
0:03:31.2]} 25. Kc2 {[%clk 0:02:53.2]} 25... b5 {[%clk 0:03:29.2]} 26. a5 {[%clk
0:02:49.1]} 26... Kd5 {[%clk 0:03:28.2]} 27. Kc3 {[%clk 0:02:46.1]} 27... Nf5
{[%clk 0:03:27.6]} 28. Bf2 {[%clk 0:02:43.4]} 28... Ne7 {[%clk 0:03:26.5]} 29.
Bb6 {[%clk 0:02:30.9]} 29... Nf5 {[%clk 0:03:24.3]} 30. Bf2 {[%clk 0:02:29]}
30... Ng7 {[%clk 0:03:18.8]} 31. Bh4 {[%clk 0:02:25.1]} 31... h5 {[%clk
0:03:13.9]} 32. Bf2 {[%clk 0:02:20]} 32... Nf5 {[%clk 0:03:09.3]} 33. h4 {[%clk
0:02:17.9]} 33... Ne7 {[%clk 0:03:05.2]} 34. Bc5 {[%clk 0:02:03.8]} 34... Nf5
{[%clk 0:03:03.9]} 35. Bf2 {[%clk 0:02:02]} 35... Kc6 {[%clk 0:03:03.2]} 36. Kd3
{[%clk 0:01:57.9]} 36... Ne7 {[%clk 0:03:01.6]} 37. Bc5 {[%clk 0:01:40]} 37...
Nd5 {[%clk 0:02:53]} 38. Ke4 {[%clk 0:01:33.3]} 38... Nc7 {[%clk 0:02:21]} 39.
Bd6 {[%clk 0:01:13.6]} 39... Ne8 {[%clk 0:02:16.9]} 40. Be7 {[%clk 0:01:11.2]}
40... Ng7 {[%clk 0:02:14.4]} 41. Bc5 {[%clk 0:01:02.1]} 41... Nf5 {[%clk
0:02:13.3]} 42. Bf2 {[%clk 0:01:00.7]} 42... Ne7 {[%clk 0:02:07]} 43. Bc5 {[%clk
0:00:55.3]} 43... Nd5 {[%clk 0:02:05]} 44. Bf8 {[%clk 0:00:47.4]} 44... Kd7
{[%clk 0:02:01.2]} 45. Bc5 {[%clk 0:00:45]} 45... Nc7 {[%clk 0:01:48.6]} 46. Bd6
{[%clk 0:00:41.6]} 46... Ne8 {[%clk 0:01:47.7]} 47. Bc5 {[%clk 0:00:38.8]} 47...
Ng7 {[%clk 0:01:44.5]} 48. Bf2 {[%clk 0:00:35.6]} 48... Kc6 {[%clk 0:01:40.1]}
49. Kd4 {[%clk 0:00:33.1]} 49... Nf5+ {[%clk 0:01:38.3]} 50. Ke4 {[%clk
0:00:32.1]} 50... Kd7 {[%clk 0:01:33]} 51. Kd3 {[%clk 0:00:30.8]} 51... Ke7
{[%clk 0:01:30.5]} 52. Ke4 {[%clk 0:00:30]} 52... f6 {[%clk 0:01:29.1]} 53. Bc5+
{[%clk 0:00:28.5]} 53... Kf7 {[%clk 0:01:27.5]} 54. Bf2 {[%clk 0:00:24.3]} 54...
Ke7 {[%clk 0:00:48.1]} 55. exf6+ {[%clk 0:00:19.1]} 55... Kxf6 {[%clk
0:00:47.5]} 56. Bd4+ {[%clk 0:00:18]} 56... Ke7 {[%clk 0:00:42.7]} 57. Bf2
{[%clk 0:00:16.8]} 57... Kd6 {[%clk 0:00:38.8]} 58. Bc5+ {[%clk 0:00:15.4]}
58... Kd7 {[%clk 0:00:38.2]} 59. Bf2 {[%clk 0:00:14.1]} 59... Ke7 {[%clk
0:00:35.3]} 60. Ke5 {[%clk 0:00:11.9]} 60... Kf7 {[%clk 0:00:32.6]} 61. Ke4
{[%clk 0:00:05.2]} 61... Nd6+ {[%clk 0:00:30.1]} 62. Ke5 {[%clk 0:00:03.4]}
62... Nc4+ {[%clk 0:00:30]} 63. Kd4 {[%clk 0:00:01.7]} 63... Kf6 {[%clk
0:00:29.6]} 64. Kc5 {[%clk 0:00:00.5]} 64... Kf5 {[%clk 0:00:29.5]} 0-1

[Event "Live Chess"]
[Site "Chess.com"]
[Date "2024.06.02"]
[Round "-"]
[White "Tushinskiy"]
[Black "Crowded_House"]
[Result "1-0"]
[WhiteElo "2260"]
[BlackElo "1705"]
[TimeControl "300"]
[EndTime "18:24:37 PDT"]
[Termination "Tushinskiy won by resignation"]

1. d4 {[%clk 0:04:56.5]} 1... e6 {[%clk 0:04:59.1]} 2. c3 {[%clk 0:04:56.4]}
2... d5 {[%clk 0:04:58.1]} 3. Nf3 {[%clk 0:04:56.3]} 3... c5 {[%clk 0:04:56.5]}
4. Bf4 {[%clk 0:04:56.2]} 4... Bd6 {[%clk 0:04:54.1]} 5. Bg3 {[%clk 0:04:56.1]}
5... Nf6 {[%clk 0:04:49.8]} 6. e3 {[%clk 0:04:55]} 6... Ne4 {[%clk 0:04:48.1]}
7. Nbd2 {[%clk 0:04:53.3]} 7... Nxg3 {[%clk 0:04:47]} 8. hxg3 {[%clk 0:04:51.2]}
8... h6 {[%clk 0:04:43.8]} 9. Bd3 {[%clk 0:04:50.3]} 9... Nc6 {[%clk 0:04:35.1]}
10. Qe2 {[%clk 0:04:48.5]} 10... b6 {[%clk 0:04:30.2]} 11. O-O {[%clk
0:04:40.4]} 11... f5 {[%clk 0:04:27.4]} 12. Rad1 {[%clk 0:04:38.9]} 12... Qf6
{[%clk 0:04:18.1]} 13. a3 {[%clk 0:04:35.8]} 13... Bd7 {[%clk 0:04:16.4]} 14. c4
{[%clk 0:04:33.4]} 14... dxc4 {[%clk 0:04:04.4]} 15. Nxc4 {[%clk 0:04:31.7]}
15... Bc7 {[%clk 0:03:55.8]} 16. dxc5 {[%clk 0:04:28.5]} 16... bxc5 {[%clk
0:03:52.8]} 17. e4 {[%clk 0:04:26.8]} 17... fxe4 {[%clk 0:03:42.8]} 18. Bxe4
{[%clk 0:04:26.7]} 18... O-O {[%clk 0:03:34.1]} 19. Rxd7 {[%clk 0:04:24.2]}
19... Ne5 {[%clk 0:03:13.5]} 20. Rxc7 {[%clk 0:04:18.4]} 20... Rac8 {[%clk
0:03:06.2]} 21. Rxc8 {[%clk 0:04:15.2]} 21... Rxc8 {[%clk 0:03:04.7]} 22. Nfxe5
{[%clk 0:04:13.9]} 1-0

[Event "Live Chess"]
[Site "Chess.com"]
[Date "2024.06.02"]
[Round "-"]
[White "Dhaydon19"]
[Black "KeithArkell"]
[Result "1/2-1/2"]
[WhiteElo "2677"]
[BlackElo "2455"]
[TimeControl "300"]
[EndTime "18:24:41 PDT"]
[Termination "Game drawn by repetition"]

1. d4 {[%clk 0:04:57.9]} 1... e6 {[%clk 0:04:58.7]} 2. c3 {[%clk 0:04:57.6]}
2... Nf6 {[%clk 0:04:57.5]} 3. Nf3 {[%clk 0:04:57.3]} 3... c5 {[%clk 0:04:56.4]}
4. g3 {[%clk 0:04:57]} 4... cxd4 {[%clk 0:04:55.9]} 5. Nxd4 {[%clk 0:04:56.5]}
5... Nc6 {[%clk 0:04:54.7]} 6. Nxc6 {[%clk 0:04:55.3]} 6... bxc6 {[%clk
0:04:53.2]} 7. Bg2 {[%clk 0:04:54.8]} 7... d5 {[%clk 0:04:52.9]} 8. O-O {[%clk
0:04:54.1]} 8... Be7 {[%clk 0:04:52.5]} 9. Nd2 {[%clk 0:04:53.8]} 9... O-O
{[%clk 0:04:51.9]} 10. e4 {[%clk 0:04:53.1]} 10... a5 {[%clk 0:04:51.2]} 11. Re1
{[%clk 0:04:52.1]} 11... a4 {[%clk 0:04:50]} 12. exd5 {[%clk 0:04:50.6]} 12...
cxd5 {[%clk 0:04:49.4]} 13. Nf3 {[%clk 0:04:50.2]} 13... Bb7 {[%clk 0:04:45.4]}
14. Nd4 {[%clk 0:04:48.9]} 14... Qb6 {[%clk 0:04:42.6]} 15. Qc2 {[%clk
0:04:45.9]} 15... Rfe8 {[%clk 0:04:41]} 16. h3 {[%clk 0:04:42.8]} 16... g6
{[%clk 0:04:39]} 17. Be3 {[%clk 0:04:41.6]} 17... Qc7 {[%clk 0:04:35.3]} 18. Bf4
{[%clk 0:04:39.7]} 18... Qa5 {[%clk 0:04:29.7]} 19. Rad1 {[%clk 0:04:34.4]}
19... Rac8 {[%clk 0:04:28.3]} 20. Nf3 {[%clk 0:04:26.2]} 20... Ne4 {[%clk
0:04:24.7]} 21. Nd2 {[%clk 0:04:22.1]} 21... Nxd2 {[%clk 0:04:22.8]} 22. Bxd2
{[%clk 0:04:21.2]} 22... Bf6 {[%clk 0:04:06.8]} 23. Qd3 {[%clk 0:04:15.8]} 23...
Qb6 {[%clk 0:03:58.5]} 24. Qf3 {[%clk 0:04:11.8]} 24... Bg7 {[%clk 0:03:56.8]}
25. Bc1 {[%clk 0:04:07.2]} 25... a3 {[%clk 0:03:51.5]} 26. bxa3 {[%clk
0:04:05.9]} 26... Rxc3 {[%clk 0:03:49.4]} 27. Be3 {[%clk 0:03:54.4]} 27... d4
{[%clk 0:03:41.4]} 28. Qxb7 {[%clk 0:03:52]} 28... Qxb7 {[%clk 0:03:40.8]} 29.
Bxb7 {[%clk 0:03:50.9]} 29... dxe3 {[%clk 0:03:40.3]} 30. Rxe3 {[%clk
0:03:49.8]} 30... Rxe3 {[%clk 0:03:35.8]} 31. fxe3 {[%clk 0:03:48.4]} 31... Bc3
{[%clk 0:03:15.5]} 32. Rd3 {[%clk 0:03:43]} 32... Ba5 {[%clk 0:03:12.8]} 33. Kf2
{[%clk 0:03:38.6]} 33... Re7 {[%clk 0:03:12]} 34. Rb3 {[%clk 0:03:30.7]} 34...
Rc7 {[%clk 0:03:10]} 35. Be4 {[%clk 0:03:27.6]} 35... Rc1 {[%clk 0:02:59.9]} 36.
Rb1 {[%clk 0:03:22.5]} 36... Rc3 {[%clk 0:02:57.8]} 37. Rb3 {[%clk 0:03:21.4]}
37... Rc1 {[%clk 0:02:53.1]} 38. Rb1 {[%clk 0:03:15.3]} 38... Rc4 {[%clk
0:02:52.6]} 39. Bd3 {[%clk 0:03:10.3]} 39... Ra4 {[%clk 0:02:30.3]} 40. Rb3
{[%clk 0:03:08]} 40... Bc7 {[%clk 0:02:25.5]} 41. Bb5 {[%clk 0:03:03.7]} 41...
Ra7 {[%clk 0:02:21.1]} 42. a4 {[%clk 0:03:02.5]} 42... Kg7 {[%clk 0:02:19.7]}
43. Kf3 {[%clk 0:03:00]} 43... f5 {[%clk 0:02:18.1]} 44. g4 {[%clk 0:02:58.9]}
44... Kf6 {[%clk 0:02:17.5]} 45. Rc3 {[%clk 0:02:58.1]} 45... Be5 {[%clk
0:02:12.2]} 46. Rc5 {[%clk 0:02:55.4]} 46... Bd6 {[%clk 0:01:59.4]} 47. Rc6
{[%clk 0:02:53]} 47... Bb4 {[%clk 0:01:57.8]} 48. Bc4 {[%clk 0:02:47.9]} 48...
Re7 {[%clk 0:01:56.8]} 49. e4 {[%clk 0:02:45.5]} 49... fxg4+ {[%clk 0:01:52.6]}
50. hxg4 {[%clk 0:02:36.4]} 50... Ke5 {[%clk 0:01:49]} 51. a5 {[%clk 0:02:30.6]}
51... Bxa5 {[%clk 0:01:46.9]} 52. Bxe6 {[%clk 0:02:23.8]} 52... Rxe6 {[%clk
0:01:41.9]} 53. Rc5+ {[%clk 0:02:23]} 53... Kd4 {[%clk 0:01:41.3]} 54. Rxa5
{[%clk 0:02:22.4]} 54... Rf6+ {[%clk 0:01:40.6]} 55. Kg3 {[%clk 0:02:19.8]}
55... Kxe4 {[%clk 0:01:39.7]} 56. Ra7 {[%clk 0:02:18]} 56... h6 {[%clk
0:01:37.5]} 57. Ra4+ {[%clk 0:02:14.8]} 57... Ke3 {[%clk 0:01:35.9]} 58. Ra3+
{[%clk 0:02:14.3]} 58... Ke2 {[%clk 0:01:35.3]} 59. Rb3 {[%clk 0:02:13.2]} 59...
Ra6 {[%clk 0:01:30.1]} 60. a3 {[%clk 0:02:12.3]} 60... g5 {[%clk 0:01:29.5]} 61.
Rc3 {[%clk 0:02:10.7]} 61... Kd2 {[%clk 0:01:24.6]} 62. Rf3 {[%clk 0:02:09.3]}
62... Ke2 {[%clk 0:01:21.3]} 63. Rb3 {[%clk 0:02:06.2]} 63... Kd2 {[%clk
0:01:20.4]} 64. Rf3 {[%clk 0:02:05.4]} 64... Kc2 {[%clk 0:01:19.6]} 65. Re3
{[%clk 0:02:03.1]} 65... Kb2 {[%clk 0:01:06.4]} 66. Kf3 {[%clk 0:02:00.8]} 66...
Rf6+ {[%clk 0:01:05.3]} 67. Kg3 {[%clk 0:01:59.4]} 67... Ra6 {[%clk 0:00:58.3]}
68. Kf3 {[%clk 0:01:56.4]} 68... Rf6+ {[%clk 0:00:54.5]} 69. Kg3 {[%clk
0:01:53.4]} 69... Ra6 {[%clk 0:00:52.8]} 1/2-1/2

[Event "Live Chess"]
[Site "Chess.com"]
[Date "2024.06.02"]
[Round "-"]
[White "CarmelJane"]
[Black "MaksymYurii"]
[Result "1-0"]
[WhiteElo "2047"]
[BlackElo "970"]
[TimeControl "300"]
[EndTime "18:25:03 PDT"]
[Termination "CarmelJane won by resignation"]

1. e4 {[%clk 0:04:57.7]} 1... d5 {[%clk 0:04:57.3]} 2. exd5 {[%clk 0:04:56.6]}
2... Qxd5 {[%clk 0:04:56.1]} 3. Nf3 {[%clk 0:04:56.5]} 3... Qh5 {[%clk
0:04:54.1]} 4. Be2 {[%clk 0:04:55.3]} 4... Qg6 {[%clk 0:04:47.3]} 5. d4 {[%clk
0:04:52.7]} 5... Qxg2 {[%clk 0:04:44.6]} 6. Rg1 {[%clk 0:04:49.9]} 6... Qh3
{[%clk 0:04:39.2]} 7. Rg3 {[%clk 0:04:49.4]} 7... Qd7 {[%clk 0:04:20.7]} 8. Nc3
{[%clk 0:04:44.1]} 8... Nf6 {[%clk 0:04:19.2]} 9. Ne5 {[%clk 0:04:41.6]} 9...
Qd6 {[%clk 0:04:09.9]} 10. Nb5 {[%clk 0:04:38.4]} 10... Qd8 {[%clk 0:04:01.4]}
11. Bc4 {[%clk 0:04:22.6]} 11... e6 {[%clk 0:03:58.1]} 12. Bf4 {[%clk
0:04:20.1]} 12... Bd6 {[%clk 0:03:49.9]} 13. Rd3 {[%clk 0:04:18.3]} 13... O-O
{[%clk 0:03:40]} 14. Bg5 {[%clk 0:04:17.4]} 14... Bxe5 {[%clk 0:03:36.4]} 15.
dxe5 {[%clk 0:04:15.8]} 15... Qe7 {[%clk 0:03:09.7]} 16. exf6 {[%clk 0:04:11.5]}
16... Qc5 {[%clk 0:03:02.3]} 17. Rd8 {[%clk 0:03:56.2]} 17... g6 {[%clk
0:02:14.8]} 18. Rxf8+ {[%clk 0:03:52.6]} 18... Qxf8 {[%clk 0:02:09.1]} 19. Qd2
{[%clk 0:03:51.1]} 19... Qc5 {[%clk 0:01:57.8]} 20. Qd8+ {[%clk 0:03:47.2]}
20... Qf8 {[%clk 0:01:56.2]} 21. Qxf8+ {[%clk 0:03:46.4]} 21... Kxf8 {[%clk
0:01:55.3]} 22. Bh6+ {[%clk 0:03:46]} 22... Kg8 {[%clk 0:01:54.3]} 23. Nxc7
{[%clk 0:03:45.7]} 23... Nc6 {[%clk 0:01:41.5]} 24. Nxa8 {[%clk 0:03:45.6]}
24... Nd4 {[%clk 0:01:40.4]} 25. O-O-O {[%clk 0:03:44.2]} 25... Nc6 {[%clk
0:01:31.1]} 26. Bb5 {[%clk 0:03:42]} 1-0

[Event "Live Chess"]
[Site "Chess.com"]
[Date "2024.06.02"]
[Round "-"]
[White "booktrunk"]
[Black "stevochess11"]
[Result "0-1"]
[WhiteElo "1500"]
[BlackElo "1690"]
[TimeControl "300"]
[EndTime "18:25:27 PDT"]
[Termination "stevochess11 won by resignation"]

1. d4 {[%clk 0:04:53.5]} 1... Nf6 {[%clk 0:04:58.8]} 2. Nc3 {[%clk 0:04:50.7]}
2... d5 {[%clk 0:04:57.3]} 3. g3 {[%clk 0:04:47.3]} 3... g6 {[%clk 0:04:55.9]}
4. Bg2 {[%clk 0:04:45.8]} 4... Bg7 {[%clk 0:04:54.5]} 5. Bd2 {[%clk 0:04:43.1]}
5... O-O {[%clk 0:04:53.4]} 6. Nf3 {[%clk 0:04:40]} 6... c5 {[%clk 0:04:48]} 7.
dxc5 {[%clk 0:04:33.7]} 7... Nc6 {[%clk 0:04:38.7]} 8. O-O {[%clk 0:04:31.2]}
8... Nd7 {[%clk 0:04:35]} 9. Be3 {[%clk 0:04:25.7]} 9... Qa5 {[%clk 0:04:26.7]}
10. Bd2 {[%clk 0:04:20.8]} 10... Qxc5 {[%clk 0:04:23.1]} 11. Na4 {[%clk
0:04:17.5]} 11... Qd6 {[%clk 0:04:15.1]} 12. Rb1 {[%clk 0:04:12]} 12... e5
{[%clk 0:04:11.5]} 13. Bc3 {[%clk 0:04:09.1]} 13... b5 {[%clk 0:03:59.1]} 14. b3
{[%clk 0:04:02.5]} 14... bxa4 {[%clk 0:03:56.6]} 15. bxa4 {[%clk 0:04:01.4]}
15... d4 {[%clk 0:03:48.1]} 16. Bb2 {[%clk 0:03:58.7]} 16... e4 {[%clk
0:03:41.2]} 17. c3 {[%clk 0:03:54.4]} 17... exf3 {[%clk 0:03:38.4]} 18. Bxf3
{[%clk 0:03:52.1]} 18... Nde5 {[%clk 0:03:33.5]} 19. Bg2 {[%clk 0:03:49.7]}
19... Rd8 {[%clk 0:03:30.6]} 20. cxd4 {[%clk 0:03:46.8]} 20... Nxd4 {[%clk
0:03:27.4]} 21. Bxa8 {[%clk 0:03:41.8]} 21... Ba6 {[%clk 0:03:11.1]} 22. Bxd4
{[%clk 0:03:38.9]} 22... Qxd4 {[%clk 0:03:06.3]} 23. Qxd4 {[%clk 0:03:36.4]}
23... Rxd4 {[%clk 0:03:05.6]} 24. Bg2 {[%clk 0:03:32.2]} 24... Bxe2 {[%clk
0:03:01.6]} 25. Rfe1 {[%clk 0:03:30.9]} 25... Rd2 {[%clk 0:02:58.5]} 26. Bf1
{[%clk 0:03:24.3]} 26... Nf3+ {[%clk 0:02:55.4]} 27. Kg2 {[%clk 0:03:19.4]}
27... Nxe1+ {[%clk 0:02:51.8]} 28. Rxe1 {[%clk 0:03:17.2]} 28... Bxf1+ {[%clk
0:02:50.3]} 29. Kxf1 {[%clk 0:03:15.2]} 29... Rxa2 {[%clk 0:02:49.4]} 30. Re4
{[%clk 0:03:14]} 30... a5 {[%clk 0:02:46.9]} 31. Rc4 {[%clk 0:03:11.7]} 31...
Be5 {[%clk 0:02:43.3]} 32. f4 {[%clk 0:03:07.9]} 32... Bd6 {[%clk 0:02:39.8]}
33. Kg1 {[%clk 0:03:05.9]} 33... Bb4 {[%clk 0:02:38.6]} 34. Kh1 {[%clk
0:03:00.6]} 34... Rxa4 {[%clk 0:02:37.5]} 35. Kg2 {[%clk 0:02:59.9]} 35... Ra2+
{[%clk 0:02:35.8]} 36. Kh3 {[%clk 0:02:59.8]} 36... Be7 {[%clk 0:02:31.2]} 37.
Rc8+ {[%clk 0:02:59.7]} 37... Kg7 {[%clk 0:02:30.2]} 38. Rc7 {[%clk 0:02:56.4]}
38... Bf6 {[%clk 0:02:27.7]} 39. g4 {[%clk 0:02:54.7]} 39... h6 {[%clk
0:02:26.5]} 40. g5 {[%clk 0:02:53.4]} 40... hxg5 {[%clk 0:02:25.5]} 41. fxg5
{[%clk 0:02:53.3]} 41... Ra3+ {[%clk 0:02:23.8]} 42. Kg4 {[%clk 0:02:53.2]}
42... Ra4+ {[%clk 0:02:19.2]} 43. Kf3 {[%clk 0:02:50.2]} 43... Bxg5 {[%clk
0:02:17.6]} 44. Ra7 {[%clk 0:02:49.3]} 44... Bd2 {[%clk 0:02:16]} 45. Ke2 {[%clk
0:02:47.8]} 45... Bb4 {[%clk 0:02:14.2]} 46. h3 {[%clk 0:02:45.8]} 46... Ra2+
{[%clk 0:02:11.2]} 47. Kf3 {[%clk 0:02:44.1]} 47... a4 {[%clk 0:02:09]} 0-1